[Event "Clash of Blames"]
[Site "stage.worldchess.com"]
[Date "2024.08.19"]
[Round "1"]
[White "Kramnik, Vladimir"]
[Black "Martinez Alcantara, Jose Eduardo"]
[Result "1-0"]
[Board "1"]
[TimeControl "180+2"]
[WhiteFideId "4101588"]
[BlackFideId "3805662"]
[WhiteTitle "GM"]
[BlackTitle "GM"]
[WhiteElo "2676"]
[BlackElo "2641"]
[WhiteTeam "RUS"]
[BlackTeam "MEX"]
[WhiteClock "0:00:55"]
[BlackClock "0:00:28"]
[Variant "Standard"]

1. e4 {[%clk 0:03:02]}  c5 {[%clk 0:03:02]} 2. Nf3 {[%clk 0:03:02]}  d6 {[%clk 0:03:03]} 3. d4 {[%clk 0:03:03]}  cxd4 {[%clk 0:03:04]} 4. Nxd4 {[%clk 0:03:04]}  Nf6 {[%clk 0:03:05]} 5. Nc3 {[%clk 0:03:05]}  a6 {[%clk 0:03:06]} 6. Be3 {[%clk 0:03:06]}  e6 {[%clk 0:03:03]} 7. g4 {[%clk 0:03:05]}  Nfd7 {[%clk 0:02:56]} 8. g5 {[%clk 0:02:59]}  b5 {[%clk 0:02:53]} 9. a3 {[%clk 0:03:00]}  Bb7 {[%clk 0:02:53]} 10. f4 {[%clk 0:02:58]}  Nc6 {[%clk 0:02:43]} 11. Rg1 {[%clk 0:02:59]}  Rc8 {[%clk 0:02:41]} 12. Rg3 {[%clk 0:02:58]}  Nxd4 {[%clk 0:02:32]} 13. Qxd4 {[%clk 0:02:55]}  e5 {[%clk 0:02:27]} 14. Qd2 {[%clk 0:02:52]}  exf4 {[%clk 0:02:16]} 15. Bxf4 {[%clk 0:02:53]}  Ne5 {[%clk 0:02:14]} 16. Bxe5 {[%clk 0:02:32]}  dxe5 {[%clk 0:02:14]} 17. Rd3 {[%clk 0:02:33]}  Qc7 {[%clk 0:02:01]} 18. O-O-O {[%clk 0:02:18]}  b4 {[%clk 0:01:09]} 19. Nd5 {[%clk 0:02:19]}  Bxd5 {[%clk 0:00:58]} 20. Rxd5 {[%clk 0:02:20]}  Be7 {[%clk 0:00:54]} 21. Kb1 {[%clk 0:01:48]}  O-O {[%clk 0:00:45]} 22. Rd7 {[%clk 0:01:39]}  Qc5 {[%clk 0:00:45]} 23. axb4 {[%clk 0:01:36]}  Qxb4 {[%clk 0:00:44]} 24. Qxb4 {[%clk 0:01:36]}  Bxb4 {[%clk 0:00:46]} 25. Bxa6 {[%clk 0:01:37]}  Rc6 {[%clk 0:00:40]} 26. Bb7 {[%clk 0:01:33]}  Rb6 {[%clk 0:00:32]} 27. Bd5 {[%clk 0:01:29]}  Bc3 {[%clk 0:00:32]} 28. Bb3 {[%clk 0:01:23]}  Bd4 {[%clk 0:00:33]} 29. Rf1 {[%clk 0:01:18]}  h6 {[%clk 0:00:35]} 30. g6 {[%clk 0:00:55]}  Rxg6 {[%clk 0:00:28]} 31. Rdxf7 {[%clk 0:00:55]} 1-0